bitfinex/quotes_BTCUSD_20260104
["timestamp","ask_amount","ask_price","bid_price","bid_amount"]
[1767495437072,0.000999,91073.0,91072.0,0.01098032]
[1767495437649,0.01097996,91075.0,91072.0,0.01098032]
[1767495438135,0.01097996,91082.0,91076.0,0.04977814]
[1767495438324,0.01097996,91082.0,91078.0,0.06587705]
[1767495438325,0.02196,91082.0,91078.0,0.06587705]
[1767495439269,0.01430123,91082.0,91080.0,0.01097935]
[1767495439592,0.01430123,91082.0,91080.0,0.06487675]
[1767495439815,0.01330223,91082.0,91080.0,0.06487675]
[1767495440016,0.01330223,91082.0,91081.0,0.04977814]
[1767495440232,0.01330223,91082.0,91080.0,0.06487675]
[1767495440952,0.01321421,91082.0,91080.0,0.11465489]
[1767495441157,0.01097851,91087.0,91080.0,0.00998035]
[1767495441294,0.01097851,91087.0,91083.0,0.01097899]
[1767495441507,0.01097851,91087.0,91084.0,0.03888503]
[1767495441748,0.01,91084.0,91083.0,0.00997999]
[1767495442172,0.01,91084.0,91081.0,0.06587542]
[1767495442429,0.01,91084.0,91081.0,0.01097923]
[1767495443570,0.01,91084.0,91081.0,0.06587482]
[1767495444687,0.01,91084.0,91081.0,0.01097923]
[1767495444913,0.01,91084.0,91081.0,0.06587483]
[1767495446558,0.01,91084.0,91082.0,0.05489515]
[1767495446767,0.01097863,91086.0,91083.0,0.01097899]
[1767495446955,0.01097851,91087.0,91084.0,0.01097887]
[1767495447277,0.03293839,91088.0,91084.0,0.01097887]
[1767495447394,0.03293839,91088.0,91085.0,0.01097875]
[1767495447798,0.02196,91088.0,91085.0,0.01097875]
[1767495448604,0.0218911,91088.0,91085.0,0.01097875]
[1767495449387,0.03286949,91088.0,91085.0,0.01097875]
[1767495449608,0.03286949,91088.0,91084.0,0.01097887]
[1767495450970,0.01097851,91087.0,91084.0,0.01097887]
[1767495453761,0.01097851,91087.0,91081.0,0.01097923]
[1767495453762,0.01097863,91086.0,91081.0,0.01097923]
[1767495453986,0.01097863,91086.0,91082.0,0.06587469]
[1767495455041,0.01097863,91086.0,91082.0,0.01097911]
[1767495455272,0.01097923,91081.0,91077.0,0.01097972]
[1767495455490,0.05489782,91079.0,91075.0,0.01097996]
[1767495455654,0.05489782,91079.0,91040.0,0.2]
[1767495455655,0.01098116,91065.0,91061.0,0.0587147]
[1767495455862,0.01082215,91065.0,91061.0,0.01098164]
[1767495456064,0.00998216,91065.0,91061.0,0.0587147]
[1767495456218,0.00998216,91065.0,91061.0,0.01098164]
[1767495456636,0.00998216,91065.0,91062.0,0.01098152]
[1767495456864,0.01098068,91069.0,91066.0,0.01098104]
[1767495457240,0.01098056,91070.0,91066.0,0.01098104]
[1767495457641,0.01098056,91070.0,91066.0,0.0587141]
[1767495458053,0.01098056,91070.0,91066.0,0.01098104]
[1767495458317,0.01098056,91070.0,91066.0,0.06588578]
[1767495458592,0.01098056,91070.0,91067.0,0.04773306]
[1767495458794,0.01098044,91071.0,91067.0,0.04773306]
[1767495458795,0.01098044,91071.0,91067.0,0.01098092]
[1767495460577,0.01098044,91071.0,91067.0,0.01069644]
[1767495461184,0.01098044,91071.0,91067.0,0.0584295]
[1767495461390,0.01098044,91071.0,91067.0,0.01069644]
[1767495462026,0.01098044,91071.0,91067.0,0.0584295]
[1767495462227,0.01091153,91071.0,91067.0,0.01069644]
[1767495462424,0.01091153,91071.0,91068.0,0.0109808]
[1767495465665,0.000999,91068.0,91067.0,0.0584295]
[1767495465842,0.00090889,91068.0,91067.0,0.01069644]
[1767495466028,0.01098056,91070.0,91067.0,0.01069644]
[1767495466944,0.01091153,91071.0,91067.0,0.01069644]
[1767495468600,0.01091153,91071.0,91068.0,0.0109808]
[1767495469098,0.01084262,91071.0,91068.0,0.0109808]
[1767495469304,0.000909,91068.0,91067.0,0.01069644]
[1767495469513,0.01098056,91070.0,91067.0,0.01069644]
[1767495469514,0.01098056,91070.0,91067.0,0.0584295]
[1767495469742,0.01098056,91070.0,91065.0,0.01098116]
[1767495469743,0.01098068,91069.0,91065.0,0.04773306]
[1767495469941,0.01098092,91067.0,91063.0,0.06588799]
[1767495470279,0.0109808,91068.0,91064.0,0.01098128]
[1767495470708,0.0109808,91068.0,91052.0,0.01098273]
[1767495470709,0.01098225,91056.0,91052.0,0.01098273]
[1767495470909,0.01098249,91054.0,91052.0,0.00010781]
[1767495471524,0.01098237,91055.0,91054.0,9e-05]
[1767495471727,0.01098237,91055.0,91052.0,0.00010781]
[1767495472137,0.06589249,91058.0,91052.0,0.00010781]
[1767495472138,0.01098213,91057.0,91053.0,0.06589568]
[1767495472344,0.01098225,91056.0,91053.0,0.01098261]
[1767495472522,0.01098213,91057.0,91053.0,0.01098261]
[1767495472721,0.01098213,91057.0,91054.0,0.01098249]
[1767495473502,0.01098201,91058.0,91055.0,0.01098237]
[1767495474289,0.06589107,91060.0,91055.0,0.01098237]
[1767495474497,0.01098189,91059.0,91055.0,0.01098237]
[1767495475272,0.01098177,91060.0,91056.0,0.06589351]
[1767495476708,0.01098177,91060.0,91057.0,0.01098213]
[1767495477061,0.05490852,91061.0,91057.0,0.01098213]
[1767495477475,0.06589016,91061.0,91057.0,0.01098213]
[1767495479392,0.05490399,91063.0,91061.0,9e-05]
[1767495479560,0.05490399,91063.0,91060.0,0.01078729]
[1767495480200,0.05490399,91063.0,91060.0,0.06569564]
[1767495480405,0.05490399,91063.0,91060.0,0.11528337]
[1767495480579,0.05490399,91063.0,91060.0,0.06569564]
[1767495482040,0.01097996,91075.0,91069.0,0.04958773]
[1767495482292,0.05979711,91075.0,91072.0,0.01093632]
[1767495482440,0.000999,91072.0,91069.0,0.06588408]
[1767495482630,0.01146679,91080.0,91077.0,0.01097972]
[1767495482825,0.00048744,91080.0,91077.0,0.01097972]
[1767495483271,0.00041852,91080.0,91077.0,0.01097972]
[1767495483483,0.01139787,91080.0,91075.0,0.01097996]
[1767495484027,0.01097984,91076.0,91071.0,0.01098044]
[1767495484231,0.01097984,91076.0,91060.0,0.21963402]
[1767495484232,0.0109808,91068.0,91063.0,0.02196136]
[1767495484635,0.01098092,91067.0,91063.0,0.02196136]
[1767495484833,0.01098104,91066.0,91063.0,0.01097996]
[1767495485759,0.01098104,91066.0,91063.0,0.02196136]
[1767495486562,0.01098092,91067.0,91063.0,0.02196136]
[1767495487828,0.0109808,91068.0,91064.0,0.01098128]
[1767495488285,0.01091188,91068.0,91064.0,0.01098128]
[1767495489187,0.01084296,91068.0,91064.0,0.01098128]
[1767495489610,0.01077404,91068.0,91064.0,0.01098128]
[1767495489772,0.01098092,91067.0,91064.0,0.01098128]
[1767495490175,0.01077404,91068.0,91064.0,0.01098128]
[1767495490372,0.01077404,91068.0,91065.0,0.06588699]
[1767495490617,0.01070512,91068.0,91065.0,0.06588699]
[1767495491139,0.01070512,91068.0,91065.0,0.01098116]
[1767495493904,0.05490312,91070.0,91066.0,0.01098104]
[1767495493905,0.01098056,91070.0,91066.0,0.01098104]
[1767495495390,0.01098068,91069.0,91066.0,0.01098104]
[1767495496869,0.01091175,91069.0,91066.0,0.01098104]
[1767495500245,0.01091175,91069.0,91065.0,0.01098116]
[1767495500532,0.01098056,91070.0,91066.0,0.01098104]
[1767495501283,0.01098056,91070.0,91066.0,0.06588577]
[1767495501925,0.01098056,91070.0,91067.0,0.01098092]
[1767495502322,0.01098056,91070.0,91067.0,0.01093586]
[1767495502566,0.01098068,91069.0,91066.0,0.01098104]
[1767495502739,0.01091175,91069.0,91066.0,0.01098104]
[1767495503501,0.01084282,91069.0,91066.0,0.01098104]
[1767495503724,0.01098044,91071.0,91067.0,0.06588555]
[1767495503959,0.01098044,91071.0,91068.0,0.0109808]
[1767495504933,0.06588309,91071.0,91066.0,0.01098104]
[1767495506063,0.01098068,91069.0,91066.0,0.01098104]
[1767495512647,0.01098044,91071.0,91067.0,0.06588555]
[1767495512847,0.00847284,91071.0,91067.0,0.06588555]
[1767495514197,0.00847284,91071.0,91067.0,0.01098092]
[1767495514816,0.01098056,91070.0,91067.0,0.01098092]
[1767495516255,0.0109802,91073.0,91068.0,0.0109808]
[1767495516455,0.0109802,91073.0,91069.0,0.01098068]
[1767495516811,0.04526606,91072.0,91069.0,0.05490303]
[1767495517005,0.0109802,91073.0,91065.0,0.01098116]
[1767495517006,0.0109802,91073.0,91065.0,0.05627891]
[1767495517802,0.01098032,91072.0,91069.0,0.01098068]
[1767495519157,0.01098032,91072.0,91068.0,0.0109808]
[1767495520326,0.01098032,91072.0,91068.0,0.05627855]
[1767495523329,0.01588156,91073.0,91070.0,0.01098056]
[1767495523533,0.07686079,91074.0,91070.0,0.01098056]
[1767495523728,0.00614451,91075.0,91074.0,0.010999]
[1767495523930,0.01139787,91080.0,91075.0,0.01097996]
[1767495523931,0.01097947,91079.0,91075.0,0.01097996]
[1767495524378,0.00041852,91080.0,91077.0,0.01097972]
[1767495524586,0.02237852,91080.0,91077.0,0.01097972]
[1767495524916,0.00534487,91080.0,91077.0,0.01097972]
[1767495525452,0.01097923,91081.0,91077.0,0.01097972]
[1767495525862,0.01097935,91080.0,91077.0,0.01097972]
[1767495527372,0.000999,91077.0,91076.0,0.01097984]
[1767495527572,0.01097947,91079.0,91076.0,0.01097984]
[1767495530035,0.01097947,91079.0,91076.0,0.00998084]
[1767495537978,0.01097935,91080.0,91079.0,0.000999]
[1767495538207,0.01097923,91081.0,91079.0,0.00047771]
[1767495538401,0.01097923,91081.0,91078.0,0.01097959]
[1767495538744,0.02196,91085.0,91082.0,0.01097911]
[1767495539070,0.01097863,91086.0,91082.0,0.01093405]
[1767495539197,0.01097863,91086.0,91085.0,0.000478]
[1767495539575,0.01097863,91086.0,91082.0,0.01093405]
[1767495539957,0.01097863,91086.0,91082.0,0.06582913]
[1767495540162,0.03293851,91087.0,91083.0,0.01097899]
[1767495540353,0.01097863,91086.0,91083.0,0.01097899]
[1767495540559,0.01097863,91086.0,91082.0,0.01093405]
[1767495540760,0.000565,91083.0,91082.0,0.01093405]
[1767495541259,0.01097887,91084.0,91080.0,0.01097935]
[1767495541457,0.06587325,91084.0,91078.0,0.01097959]
[1767495541660,0.01097911,91082.0,91078.0,0.01097959]
[1767495541880,0.01097887,91084.0,91079.0,0.06587686]
[1767495542062,0.01097875,91085.0,91082.0,0.000434]
[1767495542205,0.01097875,91085.0,91080.0,0.01097935]
[1767495542842,0.01097887,91084.0,91080.0,0.01097935]
[1767495543050,0.0658737,91084.0,91080.0,0.01097935]
[1767495543301,0.01097899,91083.0,91080.0,0.01097935]
[1767495545166,0.01097899,91083.0,91080.0,0.01069487]
[1767495545395,0.01097887,91084.0,91081.0,0.01097923]
[1767495545594,0.11461467,91085.0,91081.0,0.01097923]
[1767495545794,0.05972036,91085.0,91082.0,0.06587469]
[1767495546937,0.04874161,91085.0,91082.0,0.06587469]
[1767495547355,0.05972036,91085.0,91082.0,0.01097911]
[1767495550547,0.04874161,91085.0,91082.0,0.01097911]
[1767495551616,0.04830761,91085.0,91082.0,0.01097911]
[1767495551809,0.05928636,91085.0,91082.0,0.01097911]
[1767495552118,0.04830761,91085.0,91082.0,0.01097911]
[1767495552612,0.04830761,91085.0,91082.0,0.06587432]
[1767495552751,0.04879684,91086.0,91082.0,0.02685331]
[1767495552951,5.523e-05,91086.0,91077.0,0.2195944]
[1767495553714,5.523e-05,91086.0,91083.0,0.05489449]
[1767495554027,5.523e-05,91086.0,91083.0,0.06587348]
[1767495555396,0.05489005,91092.0,91084.0,0.06587278]
[1767495555612,0.08782721,91093.0,91087.0,0.01097851]
[1767495555832,0.01097791,91092.0,91087.0,0.05382445]
[1767495556078,0.03293779,91093.0,91089.0,0.01097827]
[1767495556385,0.01097791,91092.0,91088.0,0.01097839]
[1767495556933,0.01097803,91091.0,91088.0,0.01097839]
[1767495557171,0.01097791,91092.0,91088.0,0.01069391]
[1767495557374,0.01097803,91091.0,91088.0,0.04701083]
[1767495557750,0.01097791,91092.0,91088.0,0.05798922]
[1767495557947,0.01097791,91092.0,91088.0,0.01097839]
[1767495558151,0.02196,91093.0,91090.0,0.05798898]
[1767495558639,0.03293779,91093.0,91089.0,0.01097827]
[1767495559054,0.03293779,91093.0,91089.0,0.0579891]
[1767495560060,0.06586747,91092.0,91089.0,0.04701083]
[1767495560296,0.01097791,91092.0,91089.0,0.04701083]
[1767495560457,0.03293779,91093.0,91089.0,0.0579891]
[1767495560895,0.02196,91093.0,91090.0,0.01097815]
[1767495561718,0.03293779,91093.0,91090.0,0.01097815]
[1767495562233,0.03293779,91093.0,91090.0,0.05798898]
[1767495562585,0.08782676,91093.0,91090.0,0.04701083]
[1767495563016,0.03293779,91093.0,91090.0,0.04701083]
[1767495564309,0.02196,91093.0,91090.0,0.05798898]
[1767495564510,0.02196,91093.0,91090.0,0.01069369]
[1767495565536,0.02196,91093.0,91090.0,0.05770452]
[1767495566177,0.02196,91093.0,91090.0,0.01069369]
[1767495567067,0.02196,91093.0,91090.0,0.05770452]
[1767495567945,0.08782681,91093.0,91090.0,0.04701083]
[1767495569232,0.08782681,91093.0,91089.0,0.01097827]
[1767495569440,0.03293779,91093.0,91089.0,0.01097827]
[1767495569649,0.01097791,91092.0,91088.0,0.05798922]
[1767495570084,0.01097803,91091.0,91088.0,0.05798922]
[1767495570634,0.01097803,91091.0,91088.0,0.04701083]
[1767495571669,0.06586866,91091.0,91088.0,0.04701083]
[1767495573663,0.01097803,91091.0,91088.0,0.04701083]
[1767495573852,0.01097803,91091.0,91088.0,0.05798922]
[1767495574045,0.01089,91091.0,91089.0,0.04625785]
[1767495574356,0.0001504,91094.0,91093.0,0.04625785]
[1767495574776,0.05488775,91095.0,91090.0,0.01097815]
[1767495574991,0.06586649,91094.0,91090.0,0.04625785]
[1767495575397,0.01097779,91093.0,91090.0,0.057236]
[1767495575513,0.01097767,91094.0,91090.0,0.057236]
[1767495576750,0.06586643,91094.0,91090.0,0.057236]
[1767495576949,0.0658666,91094.0,91092.0,0.04625785]
[1767495577200,0.01097767,91094.0,91092.0,0.04625785]
[1767495578141,0.0658665,91094.0,91092.0,0.04625785]
[1767495578344,0.01097767,91094.0,91092.0,0.04625785]
[1767495578546,0.01097743,91096.0,91092.0,0.05723576]
[1767495578673,0.01097755,91095.0,91092.0,0.04625785]
[1767495579174,0.01097743,91096.0,91092.0,0.05723576]
[1767495579417,0.01097755,91095.0,91092.0,0.04625785]
[1767495579618,0.06586584,91095.0,91092.0,0.04616874]
[1767495580286,0.06586646,91094.0,91090.0,0.057236]
[1767495580631,0.01097779,91093.0,91090.0,0.04625785]
[1767495581409,0.06586711,91093.0,91090.0,0.03625785]
[1767495582668,0.06586674,91093.0,91090.0,0.03625785]
[1767495583603,0.05488995,91092.0,91090.0,0.03625785]
[1767495583777,0.06586674,91093.0,91090.0,0.03625785]
[1767495584307,0.01097767,91094.0,91090.0,0.03625785]
[1767495584574,0.01097779,91093.0,91090.0,0.047236]
[1767495585652,0.01097779,91093.0,91090.0,0.03625785]
[1767495586627,0.01097767,91094.0,91090.0,0.047236]
[1767495586805,0.01097779,91093.0,91090.0,0.03625785]
[1767495587145,0.06586658,91094.0,91090.0,0.03625785]
[1767495587412,0.00997867,91094.0,91091.0,0.04625785]
[1767495587591,0.06486755,91094.0,91091.0,0.04625785]
[1767495587803,0.05488939,91093.0,91091.0,0.04625785]
[1767495587956,0.06586718,91093.0,91089.0,0.05723612]
[1767495588169,0.06586718,91093.0,91089.0,0.04625785]
[1767495588170,0.01097791,91092.0,91089.0,0.04625785]
[1767495588374,0.01088988,91092.0,91089.0,0.05723612]
[1767495588999,0.01097779,91093.0,91089.0,0.05723612]
[1767495589203,0.01097779,91093.0,91092.0,0.01]
[1767495589400,0.0582188,91093.0,91092.0,0.009001]
[1767495589601,0.04724101,91093.0,91087.0,0.06587054]
[1767495589860,0.04624201,91093.0,91087.0,0.06587054]
[1767495590065,0.06486755,91094.0,91088.0,0.04625785]
[1767495590616,0.06586715,91093.0,91089.0,0.04625785]
[1767495592068,0.06586715,91093.0,91089.0,0.05723612]
[1767495592279,0.01097791,91092.0,91089.0,0.05723612]
[1767495592488,0.01097791,91092.0,91089.0,0.04597339]
[1767495592702,0.01097779,91093.0,91089.0,0.05695166]
[1767495593550,0.06486755,91094.0,91091.0,0.04625785]
[1767495593754,0.00997867,91094.0,91091.0,0.05723588]
[1767495595305,0.00997867,91094.0,91091.0,0.04625785]
[1767495596531,0.00997867,91094.0,91091.0,0.04525885]
[1767495596729,0.06486739,91094.0,91091.0,0.04525885]
[1767495599469,0.00897967,91094.0,91091.0,0.04525885]
[1767495600270,0.06386837,91094.0,91091.0,0.04525885]
[1767495602405,0.05488943,91093.0,91091.0,0.04525885]
[1767495602632,0.06386837,91094.0,91091.0,0.04525885]
[1767495603404,0.05488956,91093.0,91091.0,0.04525885]
[1767495603612,0.01097899,91083.0,91080.0,0.04822461]
[1767495603830,0.01097899,91083.0,91080.0,5.523e-05]
[1767495603831,0.01091006,91083.0,91080.0,5.523e-05]
[1767495604035,0.00094377,91080.0,91076.0,0.00047419]
[1767495604236,0.00094377,91080.0,91076.0,0.0486988]
[1767495604447,0.06587542,91081.0,91076.0,0.0486988]
[1767495604658,0.06580548,91083.0,91078.0,0.1141019]
[1767495604855,0.01097887,91084.0,91080.0,0.01097935]
[1767495605062,0.01097863,91086.0,91081.0,0.1031208]
[1767495605266,0.01097863,91086.0,91082.0,0.04822461]
[1767495605577,0.01097863,91086.0,91082.0,0.05920372]
[1767495605578,0.01097875,91085.0,91082.0,0.05920372]
[1767495605784,0.01097863,91086.0,91082.0,0.05920372]
[1767495605915,0.01097827,91089.0,91083.0,0.0592036]
[1767495606121,0.01097779,91093.0,91089.0,0.05920288]
[1767495607130,0.01097791,91092.0,91089.0,0.05920288]
[1767495607473,0.01097791,91092.0,91089.0,0.04822461]
[1767495608499,0.01097791,91092.0,91089.0,0.05920288]
[1767495608699,0.01097779,91093.0,91089.0,0.05920288]
[1767495609489,0.06586634,91094.0,91089.0,0.05920288]
[1767495609892,0.06586634,91094.0,91090.0,0.05920276]
[1767495610227,0.01097767,91094.0,91090.0,0.05920276]
[1767495610371,0.01097767,91094.0,91091.0,0.01097803]
[1767495610578,0.01097755,91095.0,91091.0,0.06586792]
[1767495611157,0.01097755,91095.0,91091.0,0.01097803]
[1767495611372,0.0109773,91097.0,91092.0,0.01097791]
[1767495611548,0.02196,91098.0,91095.0,0.01097755]
[1767495611742,0.02196,91098.0,91095.0,0.05920216]
[1767495612177,0.02196,91098.0,91095.0,0.01097755]
[1767495612314,0.01097694,91100.0,91096.0,0.01097743]
[1767495612748,0.01097706,91099.0,91096.0,0.01097743]
[1767495613117,0.01097694,91100.0,91096.0,0.01097743]
[1767495613322,0.00012,92518.0,91095.0,0.06586489]
[1767495613323,0.0109761,91107.0,91100.0,0.01097694]
[1767495613520,0.0109761,91107.0,91104.0,0.01097646]
[1767495613727,0.01097586,91109.0,91104.0,0.00997746]
[1767495613944,0.01097598,91108.0,91104.0,0.00997746]
[1767495614147,0.0109761,91107.0,91103.0,0.01097658]
[1767495614728,0.01097562,91111.0,91108.0,0.01097598]
[1767495614930,0.0109749,91117.0,91113.0,0.11407659]
[1767495615180,0.00035929,91117.0,91115.0,0.01097514]
[1767495615340,0.00035929,91117.0,91112.0,0.0109755]
[1767495615341,0.01,91115.0,91112.0,0.0109755]
[1767495615750,0.01,91115.0,91112.0,0.01093042]
[1767495615951,0.02026157,91115.0,91112.0,0.01093042]
[1767495616155,0.00928643,91115.0,91112.0,0.01093042]
[1767495616931,0.00928643,91115.0,91112.0,0.06580772]
[1767495617334,0.00828743,91115.0,91114.0,0.0548763]
[1767495617892,0.06584383,91125.0,91118.0,0.01097477]
[1767495618104,0.01097417,91123.0,91119.0,0.05919926]
[1767495618495,0.01097417,91123.0,91120.0,0.01097453]
[1767495618951,0.00010774,91125.0,91121.0,0.05919902]
[1767495619160,0.01108167,91125.0,91121.0,0.05919902]
[1767495619366,0.01108167,91125.0,91121.0,0.01097441]
[1767495619571,0.01097405,91124.0,91120.0,0.01097453]
[1767495620056,0.01108167,91125.0,91121.0,0.01097441]
[1767495620703,0.00010774,91125.0,91122.0,0.01097429]
[1767495620872,1.969e-05,91125.0,91122.0,0.0591989]
[1767495621079,1.969e-05,91125.0,91122.0,0.01097429]
[1767495622361,0.01099362,91125.0,91122.0,0.01097429]
[1767495622731,0.01099362,91125.0,91119.0,0.01097465]
[1767495622921,0.01099362,91125.0,91118.0,0.01097477]
[1767495622922,0.01097417,91123.0,91115.0,0.02196]
[1767495623129,0.000999,91119.0,91115.0,0.03293514]
[1767495623335,0.01097429,91122.0,91116.0,0.01097502]
[1767495623477,0.01097477,91118.0,91116.0,0.04822461]
[1767495623679,0.06584916,91118.0,91116.0,0.04822461]
[1767495623903,0.00919843,91116.0,91115.0,1e-08]
[1767495624313,0.0557861,91116.0,91115.0,1e-08]
[1767495624524,0.0548751,91116.0,91115.0,1e-08]
[1767495624906,0.01097538,91113.0,91110.0,0.01097574]
[1767495625116,0.01088731,91113.0,91111.0,0.02167554]
[1767495625361,0.01079931,91113.0,91111.0,0.02167554]
[1767495626341,0.0656767,91113.0,91111.0,0.02167554]
[1767495626584,0.0656767,91113.0,91112.0,0.04822461]
[1767495626767,0.01097514,91115.0,91112.0,0.04822461]
[1767495626975,0.0658514,91115.0,91113.0,0.00171258]
[1767495627180,0.01097526,91114.0,91111.0,0.08087577]
[1767495627593,0.0109749,91117.0,91111.0,0.08752919]
[1767495627800,0.05487342,91119.0,91113.0,0.05919999]
[1767495628011,0.05487152,91122.0,91119.0,0.00171258]
[1767495628216,0.01088635,91121.0,91119.0,0.00171258]
[1767495628440,0.06575887,91121.0,91117.0,0.0109749]
[1767495628659,0.01097429,91122.0,91118.0,0.05487389]
[1767495628880,1.969e-05,91125.0,91122.0,0.06584578]
[1767495629087,0.01110227,91130.0,91127.0,0.01097369]
[1767495629722,0.01110227,91130.0,91126.0,0.01097381]
[1767495630149,0.000999,91126.0,91125.0,0.01097393]
[1767495630379,0.01097393,91125.0,91122.0,0.01097429]
[1767495630601,0.00828742,91126.0,91122.0,0.06584575]
[1767495630807,0.01097369,91127.0,91122.0,0.06584575]
[1767495631226,0.01097381,91126.0,91122.0,0.01097429]
[1767495631436,0.01097369,91127.0,91123.0,0.01097417]
[1767495631859,0.01097369,91127.0,91124.0,0.01097405]
[1767495632057,0.000911,91124.0,91123.0,0.01097417]
[1767495632272,0.01097381,91126.0,91122.0,0.01097429]
[1767495632488,0.01097369,91127.0,91122.0,0.06584526]
[1767495632687,0.01097381,91126.0,91122.0,0.01097429]
[1767495633735,0.01097345,91129.0,91123.0,0.06584505]
[1767495633936,0.01097357,91128.0,91126.0,0.000177]
[1767495634276,0.01097369,91127.0,91124.0,0.01097405]
[1767495634516,0.01097369,91127.0,91123.0,0.01097417]
[1767495634725,0.01088561,91127.0,91123.0,0.01097417]
[1767495635675,0.01097381,91126.0,91123.0,0.01097417]
[1767495635851,0.01097381,91126.0,91122.0,0.01097429]
[1767495635852,0.01097393,91125.0,91122.0,0.01097429]
[1767495636681,0.01097345,91129.0,91125.0,0.010177]
[1767495636879,0.01097345,91129.0,91126.0,0.01097381]
[1767495638643,0.01097345,91129.0,91125.0,0.01097393]
[1767495639934,0.00012894,91130.0,91127.0,0.01097369]
[1767495640145,0.00012894,91130.0,91129.0,0.00188958]
[1767495640355,0.00012894,91130.0,91129.0,0.00142812]
[1767495640809,0.01110227,91130.0,91126.0,0.01097381]
[1767495642245,0.01097345,91129.0,91126.0,0.01097381]
[1767495642452,0.01088537,91129.0,91126.0,0.01097381]
[1767495642670,0.01088537,91129.0,91125.0,0.06584318]
[1767495642671,0.01088537,91129.0,91125.0,0.01097393]
[1767495642963,0.01088537,91129.0,91125.0,0.06584361]
[1767495643790,0.01088537,91129.0,91126.0,0.01097381]
[1767495644510,0.00012894,91130.0,91129.0,0.00160511]
[1767495644929,8.148e-05,91130.0,91129.0,0.00160511]
[1767495645139,8.148e-05,91130.0,91129.0,0.00142811]
[1767495646069,4.8e-07,91130.0,91129.0,0.00142811]
[1767495646314,4.8e-07,91130.0,91127.0,0.06584217]
[1767495649401,4.8e-07,91130.0,91127.0,0.01097369]
[1767495649578,0.01097381,91130.0,91126.0,0.01097381]
[1767495649782,0.01090487,91130.0,91126.0,0.06584266]
[1767495650002,0.01090487,91130.0,91127.0,0.01097369]
[1767495650229,0.000903,91127.0,91126.0,0.01097381]
[1767495650466,0.01090487,91126.0,91123.0,0.01097417]
[1767495650693,0.07531763,91127.0,91123.0,0.01097417]
[1767495650694,0.00857188,91127.0,91124.0,0.01097405]
[1767495651872,0.01954557,91127.0,91124.0,0.01007105]
[1767495652921,0.00757288,91127.0,91124.0,0.01097405]
[1767495653130,0.01097309,91132.0,91128.0,0.01097357]
[1767495653760,0.01097309,91132.0,91125.0,0.01097393]
[1767495653761,0.000999,91128.0,91126.0,0.06584247]
[1767495653964,0.04629786,91141.0,91123.0,0.21948123]
[1767495654100,0.0110193,91141.0,91137.0,0.01097249]
[1767495654528,0.000999,91137.0,91135.0,0.06583639]
[1767495654904,0.01097213,91140.0,91136.0,0.01097261]
[1767495655311,0.01097225,91139.0,91135.0,0.01097273]
[1767495655707,0.04629786,91139.0,91136.0,0.00997361]
[1767495655908,0.05727011,91139.0,91113.0,0.04958105]
[1767495656116,0.05727011,91139.0,91120.0,0.38162851]
[1767495656539,0.05486185,91138.0,91132.0,0.05486507]
[1767495656737,0.01097225,91139.0,91120.0,0.38162851]
[1767495656738,0.01097225,91139.0,91134.0,0.06583653]
[1767495657057,0.01097213,91140.0,91136.0,0.01097261]
[1767495658326,4.729e-05,91141.0,91140.0,0.010999]
[1767495658535,4.729e-05,91141.0,91140.0,0.01]
[1767495659352,0.0109714,91146.0,91142.0,0.01097189]
[1767495659765,0.01097128,91147.0,91143.0,0.01097176]
[1767495660124,0.01097128,91147.0,91144.0,0.01097164]
[1767495660958,0.01097128,91147.0,91143.0,0.04523059]
[1767495661166,0.01097128,91147.0,91143.0,0.01097176]
[1767495662125,0.0109714,91146.0,91142.0,0.05620248]
[1767495662337,0.01097152,91145.0,91142.0,0.04523059]
[1767495663076,0.06582971,91145.0,91142.0,0.04523059]
[1767495663282,0.01097152,91145.0,91142.0,0.04494613]
[1767495663482,0.06582973,91145.0,91142.0,0.04494613]
[1767495663903,0.05485869,91144.0,91142.0,0.04494613]
[1767495664599,0.01097152,91145.0,91144.0,0.000999]
[1767495664752,0.01097152,91145.0,91142.0,0.05591802]
[1767495664960,0.06582844,91146.0,91142.0,0.04494613]
[1767495665182,0.0001504,91148.0,91145.0,0.0655447]
[1767495665481,4e-07,91148.0,91145.0,0.06265632]
[1767495665680,0.06605753,91150.0,91148.0,0.04523059]
[1767495665681,0.00023194,91150.0,91148.0,0.04523059]
[1767495665856,0.01120286,91150.0,91146.0,0.0109714]
[1767495666058,0.01120286,91150.0,91146.0,0.05620199]
[1767495667295,0.01120286,91150.0,91146.0,0.05591756]
[1767495668012,0.01097104,91149.0,91146.0,0.04508059]
[1767495668795,0.01097104,91149.0,91146.0,0.05605199]
[1767495669330,0.02196,91154.0,91150.0,0.04523059]
[1767495669572,0.03293044,91154.0,91150.0,0.05620151]
[1767495669951,0.01097044,91154.0,91150.0,0.05620151]
[1767495670360,0.01097056,91153.0,91150.0,0.05620151]
[1767495670712,0.06582343,91153.0,91150.0,0.04523059]
[1767495670981,0.06582343,91153.0,91146.0,0.0109714]
[1767495670982,0.06582561,91150.0,91147.0,0.04523059]
[1767495671802,0.01097116,91148.0,91144.0,0.04523059]
[1767495672019,0.01097128,91147.0,91144.0,0.04523059]
[1767495672438,0.01097116,91148.0,91144.0,0.05620223]
[1767495673268,0.01097128,91147.0,91144.0,0.04523059]
[1767495673701,0.01097189,91142.0,91139.0,0.01097225]
[1767495673913,0.01097152,91145.0,91142.0,0.000999]
[1767495674130,0.05485824,91144.0,91142.0,0.04622959]
[1767495674535,0.06582968,91145.0,91142.0,0.04523059]
[1767495675146,0.01097152,91145.0,91142.0,0.04523059]
[1767495675349,0.0548587,91144.0,91142.0,0.04518551]
[1767495675554,0.0548587,91144.0,91142.0,0.04514148]
[1767495675763,0.06582962,91145.0,91131.0,0.0562038]
[1767495675764,0.05486297,91137.0,91131.0,0.0562038]
[1767495675970,0.05486727,91129.0,91128.0,0.02196]
[1767495676203,0.05486727,91129.0,91126.0,0.04523059]
[1767495676204,0.01097345,91129.0,91126.0,0.04523059]
[1767495676403,0.01097345,91129.0,91125.0,0.02196]
[1767495676404,0.01097321,91131.0,91128.0,0.04523059]
[1767495676631,0.01097297,91133.0,91129.0,0.01097345]
[1767495676840,0.01097285,91134.0,91130.0,0.01097333]
[1767495677074,0.01097285,91134.0,91130.0,0.0109293]
[1767495677451,0.01097297,91133.0,91129.0,0.05620404]
[1767495677694,0.01097297,91133.0,91130.0,0.01097333]
[1767495677901,0.06583695,91135.0,91131.0,0.01097321]
[1767495678119,0.01097273,91135.0,91131.0,0.0562038]
[1767495678352,0.01097249,91137.0,91134.0,0.01097285]
[1767495679150,0.01097249,91137.0,91133.0,0.01097297]
[1767495679328,0.01097249,91137.0,91133.0,0.06583754]
[1767495679499,0.01097249,91137.0,91133.0,0.11106813]
[1767495679875,0.01097261,91136.0,91133.0,0.04523059]
[1767495680814,0.06583626,91136.0,91133.0,0.04494616]
[1767495681051,0.06583626,91136.0,91133.0,0.04394716]
[1767495681251,0.06583626,91136.0,91135.0,0.0002259]
[1767495681465,0.06583626,91136.0,91133.0,0.04394716]
[1767495681466,0.0002259,91135.0,91133.0,0.04394716]
[1767495681854,0.06583626,91136.0,91133.0,0.04394716]
[1767495684127,0.01097261,91136.0,91133.0,0.04394716]